Workbook

Sheet 初中语文
A1: 长丰县第二中学2024年教师招聘笔面试综合成绩表
A2: 序号 | B2: 岗位名称 | C2: 笔试准考证号 | D2: 笔试成绩 | E2: 面试成绩 | F2: 综合成绩 （笔试成绩*0.5+面试成绩*0.5） | G2: 备注
A3: =ROW()-2 -> 1 | B3: 初中语文 | C3: 2024820110 | D3: 86 | E3: 87.37 | F3: =ROUND(D3*0.5+E3*0.5,2) -> 86.69
A4: =ROW()-2 -> 2 | B4: 初中语文 | C4: 2024820118 | D4: 87 | E4: 81.5 | F4: =ROUND(D4*0.5+E4*0.5,2) -> 84.25
A5: =ROW()-2 -> 3 | B5: 初中语文 | C5: 2024820116 | D5: 83 | E5: 78.6 | F5: =ROUND(D5*0.5+E5*0.5,2) -> 80.8
A6: 4 | B6: 初中语文 | C6: 2024820117 | D6: 81 | E6: / | F6: /
A7: 5 | B7: 初中语文 | C7: 2024820103 | D7: 79 | E7: / | F7: /
A8: 6 | B8: 初中语文 | C8: 2024820113 | D8: 76 | E8: / | F8: /
A9: 7 | B9: 初中语文 | C9: 2024820109 | D9: 73 | E9: / | F9: /
A10: 8 | B10: 初中语文 | C10: 2024820114 | D10: 71 | E10: / | F10: /
A11: 9 | B11: 初中语文 | C11: 2024820111 | D11: 70 | E11: / | F11: /
A12: 10 | B12: 初中语文 | C12: 2024820107 | D12: 68 | E12: / | F12: /
A13: 11 | B13: 初中语文 | C13: 2024820112 | D13: 68 | E13: / | F13: /
A14: 12 | B14: 初中语文 | C14: 2024820115 | D14: 61 | E14: / | F14: /
A15: 13 | B15: 初中语文 | C15: 2024820101 | D15: 0 | E15: / | F15: / | G15: 缺考
A16: 14 | B16: 初中语文 | C16: 2024820102 | D16: 0 | E16: / | F16: / | G16: 缺考
A17: 15 | B17: 初中语文 | C17: 2024820104 | D17: 0 | E17: / | F17: / | G17: 缺考
A18: 16 | B18: 初中语文 | C18: 2024820105 | D18: 0 | E18: / | F18: / | G18: 缺考
A19: 17 | B19: 初中语文 | C19: 2024820106 | D19: 0 | E19: / | F19: / | G19: 缺考
A20: 18 | B20: 初中语文 | C20: 2024820108 | D20: 0 | E20: / | F20: / | G20: 缺考
A21: 19 | B21: 初中语文 | C21: 2024820119 | D21: 0 | E21: / | F21: / | G21: 缺考

Sheet 初中数学
A1: 长丰县第二中学2024年教师招聘笔面试综合成绩表
A2: 序号 | B2: 岗位名称 | C2: 笔试准考证号 | D2: 笔试成绩 | E2: 面试成绩 | F2: 综合成绩 （笔试成绩*0.5+面试成绩*0.5） | G2: 备注
A3: =ROW()-2 -> 1 | B3: 初中数学 | C3: 2024820224 | D3: 80 | E3: 83.93 | F3: =ROUND(D3*0.5+E3*0.5,2) -> 81.97
A4: 2 | B4: 初中数学 | C4: 2024820216 | D4: 73 | E4: 69.07 | F4: =ROUND(D4*0.5+E4*0.5,2) -> 71.04
A5: 3 | B5: 初中数学 | C5: 2024820201 | D5: 77 | E5: 64.77 | F5: =ROUND(D5*0.5+E5*0.5,2) -> 70.89
A6: 4 | B6: 初中数学 | C6: 2024820210 | D6: 73 | E6: 64.37 | F6: =ROUND(D6*0.5+E6*0.5,2) -> 68.69
A7: 5 | B7: 初中数学 | C7: 2024820222 | D7: 70 | E7: / | F7: /
A8: 6 | B8: 初中数学 | C8: 2024820221 | D8: 69 | E8: / | F8: /
A9: 7 | B9: 初中数学 | C9: 2024820202 | D9: 67 | E9: / | F9: /
A10: 8 | B10: 初中数学 | C10: 2024820219 | D10: 67 | E10: / | F10: /
A11: 9 | B11: 初中数学 | C11: 2024820223 | D11: 63 | E11: / | F11: /
A12: 10 | B12: 初中数学 | C12: 2024820204 | D12: 62 | E12: / | F12: /
A13: 11 | B13: 初中数学 | C13: 2024820209 | D13: 62 | E13: / | F13: /
A14: 12 | B14: 初中数学 | C14: 2024820213 | D14: 62 | E14: / | F14: /
A15: 13 | B15: 初中数学 | C15: 2024820212 | D15: 60 | E15: / | F15: /
A16: 14 | B16: 初中数学 | C16: 2024820220 | D16: 54 | E16: / | F16: /
A17: 15 | B17: 初中数学 | C17: 2024820203 | D17: 53 | E17: / | F17: /
A18: 16 | B18: 初中数学 | C18: 2024820205 | D18: 52 | E18: / | F18: /
A19: 17 | B19: 初中数学 | C19: 2024820211 | D19: 45 | E19: / | F19: /
A20: 18 | B20: 初中数学 | C20: 2024820206 | D20: 0 | E20: / | F20: / | G20: 缺考
A21: 19 | B21: 初中数学 | C21: 2024820207 | D21: 0 | E21: / | F21: / | G21: 缺考
A22: 20 | B22: 初中数学 | C22: 2024820208 | D22: 0 | E22: / | F22: / | G22: 缺考
A23: 21 | B23: 初中数学 | C23: 2024820214 | D23: 0 | E23: / | F23: / | G23: 缺考
A24: 22 | B24: 初中数学 | C24: 2024820215 | D24: 0 | E24: / | F24: / | G24: 缺考
A25: 23 | B25: 初中数学 | C25: 2024820217 | D25: 0 | E25: / | F25: / | G25: 缺考
A26: 24 | B26: 初中数学 | C26: 2024820218 | D26: 0 | E26: / | F26: / | G26: 缺考

Sheet 初中英语
A1: 长丰县第二中学2024年教师招聘笔面试综合成绩表
A2: 序号 | B2: 岗位名称 | C2: 笔试准考证号 | D2: 笔试成绩 | E2: 面试成绩 | F2: 综合成绩 （笔试成绩*0.5+面试成绩*0.5） | G2: 备注
A3: =ROW()-2 -> 1 | B3: 初中英语 | C3: 2024820302 | D3: 88 | E3: 85.83 | F3: =ROUND(D3*0.5+E3*0.5,2) -> 86.92
A4: =ROW()-2 -> 2 | B4: 初中英语 | C4: 2024820313 | D4: 83 | E4: 80.37 | F4: =ROUND(D4*0.5+E4*0.5,2) -> 81.69
A5: =ROW()-2 -> 3 | B5: 初中英语 | C5: 2024820318 | D5: 85 | E5: 74.9 | F5: =ROUND(D5*0.5+E5*0.5,2) -> 79.95
A6: =ROW()-2 -> 4 | B6: 初中英语 | C6: 2024820303 | D6: 87 | E6: / | F6: /
A7: =ROW()-2 -> 5 | B7: 初中英语 | C7: 2024820304 | D7: 81 | E7: / | F7: /
A8: 6 | B8: 初中英语 | C8: 2024820314 | D8: 81 | E8: / | F8: /
A9: 7 | B9: 初中英语 | C9: 2024820321 | D9: 81 | E9: / | F9: /
A10: 8 | B10: 初中英语 | C10: 2024820316 | D10: 78 | E10: / | F10: /
A11: 9 | B11: 初中英语 | C11: 2024820315 | D11: 76 | E11: / | F11: /
A12: 10 | B12: 初中英语 | C12: 2024820320 | D12: 74 | E12: / | F12: /
A13: 11 | B13: 初中英语 | C13: 2024820310 | D13: 73 | E13: / | F13: /
A14: 12 | B14: 初中英语 | C14: 2024820301 | D14: 0 | E14: / | F14: / | G14: 缺考
A15: 13 | B15: 初中英语 | C15: 2024820305 | D15: 0 | E15: / | F15: / | G15: 缺考
A16: 14 | B16: 初中英语 | C16: 2024820306 | D16: 0 | E16: / | F16: / | G16: 缺考
A17: 15 | B17: 初中英语 | C17: 2024820307 | D17: 0 | E17: / | F17: / | G17: 缺考
A18: 16 | B18: 初中英语 | C18: 2024820308 | D18: 0 | E18: / | F18: / | G18: 缺考
A19: 17 | B19: 初中英语 | C19: 2024820309 | D19: 0 | E19: / | F19: / | G19: 缺考
A20: 18 | B20: 初中英语 | C20: 2024820311 | D20: 0 | E20: / | F20: / | G20: 缺考
A21: 19 | B21: 初中英语 | C21: 2024820312 | D21: 0 | E21: / | F21: / | G21: 缺考
A22: 20 | B22: 初中英语 | C22: 2024820317 | D22: 0 | E22: / | F22: / | G22: 缺考
A23: 21 | B23: 初中英语 | C23: 2024820319 | D23: 0 | E23: / | F23: / | G23: 缺考

Sheet 初中道德与法治
A1: 长丰县第二中学2024年教师招聘笔面试综合成绩表
A2: 序号 | B2: 岗位名称 | C2: 笔试准考证号 | D2: 笔试成绩 | E2: 面试成绩 | F2: 综合成绩 （笔试成绩*0.5+面试成绩*0.5） | G2: 备注
A3: =ROW()-2 -> 1 | B3: 初中道德与法治 | C3: 2024820403 | D3: 88 | E3: 79.43 | F3: =ROUND(D3*0.5+E3*0.5,2) -> 83.72
A4: 2 | B4: 初中道德与法治 | C4: 2024820409 | D4: 85 | E4: 78.93 | F4: 81.97
A5: 3 | B5: 初中道德与法治 | C5: 2024820411 | D5: 78 | E5: 75.03 | F5: 76.52
A6: 4 | B6: 初中道德与法治 | C6: 2024820410 | D6: 81 | E6: 70.17 | F6: 75.59
A7: 5 | B7: 初中道德与法治 | C7: 2024820406 | D7: 74 | E7: 73.37 | F7: 73.69
A8: 6 | B8: 初中道德与法治 | C8: 2024820401 | D8: 74 | E8: 69.07 | F8: 71.54
A9: 7 | B9: 初中道德与法治 | C9: 2024820402 | D9: 69 | E9: / | F9: /
A10: 8 | B10: 初中道德与法治 | C10: 2024820404 | D10: 54 | E10: / | F10: /
A11: 9 | B11: 初中道德与法治 | C11: 2024820405 | D11: 0 | E11: / | F11: / | G11: 缺考
A12: 10 | B12: 初中道德与法治 | C12: 2024820407 | D12: 0 | E12: / | F12: / | G12: 缺考
A13: 11 | B13: 初中道德与法治 | C13: 2024820408 | D13: 0 | E13: / | F13: / | G13: 缺考
A14: 12 | B14: 初中道德与法治 | C14: 2024820412 | D14: 0 | E14: / | F14: / | G14: 缺考

Sheet 初中历史
A1: 长丰县第二中学2024年教师招聘笔面试综合成绩表
A2: 序号 | B2: 岗位名称 | C2: 笔试准考证号 | D2: 笔试成绩 | E2: 面试成绩 | F2: 综合成绩 （笔试成绩*0.5+面试成绩*0.5） | G2: 备注
A3: =ROW()-2 -> 1 | B3: 初中历史 | C3: 2024820509 | D3: 94 | E3: 82.17 | F3: =ROUND(D3*0.5+E3*0.5,2) -> 88.09
A4: =ROW()-2 -> 2 | B4: 初中历史 | C4: 2024820508 | D4: 82 | E4: 73.07 | F4: =ROUND(D4*0.5+E4*0.5,2) -> 77.54
A5: =ROW()-2 -> 3 | B5: 初中历史 | C5: 2024820507 | D5: 82 | E5: 72.5 | F5: =ROUND(D5*0.5+E5*0.5,2) -> 77.25
A6: 4 | B6: 初中历史 | C6: 2024820505 | D6: 85 | E6: 68.83 | F6: =ROUND(D6*0.5+E6*0.5,2) -> 76.92
A7: 5 | B7: 初中历史 | C7: 2024820506 | D7: 77 | E7: / | F7: /
A8: 6 | B8: 初中历史 | C8: 2024820511 | D8: 71 | E8: / | F8: /
A9: 7 | B9: 初中历史 | C9: 2024820501 | D9: 0 | E9: / | F9: / | G9: 缺考
A10: 8 | B10: 初中历史 | C10: 2024820502 | D10: 0 | E10: / | F10: / | G10: 缺考
A11: 9 | B11: 初中历史 | C11: 2024820503 | D11: 0 | E11: / | F11: / | G11: 缺考
A12: 10 | B12: 初中历史 | C12: 2024820504 | D12: 0 | E12: / | F12: / | G12: 缺考
A13: 11 | B13: 初中历史 | C13: 2024820510 | D13: 0 | E13: / | F13: / | G13: 缺考

Sheet 初中美术
A1: 长丰县第二中学2024年教师招聘笔面试综合成绩表
A2: 序号 | B2: 岗位名称 | C2: 笔试准考证号 | D2: 笔试成绩 | E2: 面试成绩 | F2: 综合成绩 （笔试成绩*0.5+面试成绩*0.5） | G2: 备注
A3: =ROW()-2 -> 1 | B3: 初中美术 | C3: 2024820620 | D3: 80 | E3: 83.23 | F3: =ROUND(D3*0.5+E3*0.5,2) -> 81.62
A4: 2 | B4: 初中美术 | C4: 2024820605 | D4: 79 | E4: 78.47 | F4: =ROUND(D4*0.5+E4*0.5,2) -> 78.74
A5: 3 | B5: 初中美术 | C5: 2024820630 | D5: 79.5 | E5: 74.8 | F5: =ROUND(D5*0.5+E5*0.5,2) -> 77.15
A6: 4 | B6: 初中美术 | C6: 2024820628 | D6: 76 | E6: / | F6: /
A7: 5 | B7: 初中美术 | C7: 2024820625 | D7: 71.5 | E7: / | F7: /
A8: 6 | B8: 初中美术 | C8: 2024820626 | D8: 71.5 | E8: / | F8: /
A9: 7 | B9: 初中美术 | C9: 2024820617 | D9: 70.5 | E9: / | F9: /
A10: 8 | B10: 初中美术 | C10: 2024820629 | D10: 70 | E10: / | F10: /
A11: 9 | B11: 初中美术 | C11: 2024820609 | D11: 62 | E11: / | F11: /
A12: 10 | B12: 初中美术 | C12: 2024820601 | D12: 61 | E12: / | F12: /
A13: 11 | B13: 初中美术 | C13: 2024820614 | D13: 53.5 | E13: / | F13: /
A14: 12 | B14: 初中美术 | C14: 2024820622 | D14: 50 | E14: / | F14: /
A15: 13 | B15: 初中美术 | C15: 2024820619 | D15: 44.5 | E15: / | F15: /
A16: 14 | B16: 初中美术 | C16: 2024820606 | D16: 43 | E16: / | F16: /
A17: 15 | B17: 初中美术 | C17: 2024820627 | D17: 35 | E17: / | F17: /
A18: 16 | B18: 初中美术 | C18: 2024820608 | D18: 30 | E18: / | F18: /
A19: 17 | B19: 初中美术 | C19: 2024820624 | D19: 29 | E19: / | F19: /
A20: 18 | B20: 初中美术 | C20: 2024820615 | D20: 24.5 | E20: / | F20: /
A21: 19 | B21: 初中美术 | C21: 2024820602 | D21: 0 | E21: / | F21: / | G21: 缺考
A22: 20 | B22: 初中美术 | C22: 2024820603 | D22: 0 | E22: / | F22: / | G22: 缺考
A23: 21 | B23: 初中美术 | C23: 2024820604 | D23: 0 | E23: / | F23: / | G23: 缺考
A24: 22 | B24: 初中美术 | C24: 2024820607 | D24: 0 | E24: / | F24: / | G24: 缺考
A25: 23 | B25: 初中美术 | C25: 2024820610 | D25: 0 | E25: / | F25: / | G25: 缺考
A26: 24 | B26: 初中美术 | C26: 2024820611 | D26: 0 | E26: / | F26: / | G26: 缺考
A27: 25 | B27: 初中美术 | C27: 2024820612 | D27: 0 | E27: / | F27: / | G27: 缺考
A28: 26 | B28: 初中美术 | C28: 2024820613 | D28: 0 | E28: / | F28: / | G28: 缺考
A29: 27 | B29: 初中美术 | C29: 2024820616 | D29: 0 | E29: / | F29: / | G29: 缺考
A30: 28 | B30: 初中美术 | C30: 2024820618 | D30: 0 | E30: / | F30: / | G30: 缺考
A31: 29 | B31: 初中美术 | C31: 2024820621 | D31: 0 | E31: / | F31: / | G31: 缺考
A32: 30 | B32: 初中美术 | C32: 2024820623 | D32: 0 | E32: / | F32: / | G32: 缺考

Sheet 初中体育
A1: 长丰县第二中学2024年教师招聘笔面试综合成绩表
A2: 序号 | B2: 岗位名称 | C2: 笔试准考证号 | D2: 笔试成绩 | E2: 面试成绩 | F2: 综合成绩 （笔试成绩*0.5+面试成绩*0.5） | G2: 备注
A3: =ROW()-2 -> 1 | B3: 初中体育 | C3: 2024820724 | D3: 79 | E3: 85.57 | F3: =ROUND(D3*0.5+E3*0.5,2) -> 82.29
A4: 2 | B4: 初中体育 | C4: 2024820709 | D4: 89 | E4: 73.37 | F4: 81.19
A5: 3 | B5: 初中体育 | C5: 2024820730 | D5: 85 | E5: 76.8 | F5: 80.9
A6: 4 | B6: 初中体育 | C6: 2024820721 | D6: 79 | E6: 82.13 | F6: 80.57
A7: 5 | B7: 初中体育 | C7: 2024820705 | D7: 79 | E7: 78.57 | F7: 78.79
A8: 6 | B8: 初中体育 | C8: 2024820716 | D8: 80 | E8: 70.47 | F8: 75.24
A9: =ROW()-2 -> 7 | B9: 初中体育 | C9: 2024820714 | D9: 76 | E9: / | F9: /
A10: 8 | B10: 初中体育 | C10: 2024820713 | D10: 74 | E10: / | F10: /
A11: 9 | B11: 初中体育 | C11: 2024820728 | D11: 71 | E11: / | F11: /
A12: 10 | B12: 初中体育 | C12: 2024820729 | D12: 71 | E12: / | F12: /
A13: 11 | B13: 初中体育 | C13: 2024820805 | D13: 66 | E13: / | F13: /
A14: 12 | B14: 初中体育 | C14: 2024820803 | D14: 65 | E14: / | F14: /
A15: 13 | B15: 初中体育 | C15: 2024820701 | D15: 63 | E15: / | F15: /
A16: 14 | B16: 初中体育 | C16: 2024820717 | D16: 59 | E16: / | F16: /
A17: 15 | B17: 初中体育 | C17: 2024820727 | D17: 59 | E17: / | F17: /
A18: 16 | B18: 初中体育 | C18: 2024820702 | D18: 58 | E18: / | F18: /
A19: 17 | B19: 初中体育 | C19: 2024820704 | D19: 58 | E19: / | F19: /
A20: 18 | B20: 初中体育 | C20: 2024820703 | D20: 57 | E20: / | F20: /
A21: 19 | B21: 初中体育 | C21: 2024820710 | D21: 57 | E21: / | F21: /
A22: 20 | B22: 初中体育 | C22: 2024820801 | D22: 54 | E22: / | F22: /
A23: 21 | B23: 初中体育 | C23: 2024820719 | D23: 53 | E23: / | F23: /
A24: 22 | B24: 初中体育 | C24: 2024820707 | D24: 48 | E24: / | F24: /
A25: 23 | B25: 初中体育 | C25: 2024820804 | D25: 47 | E25: / | F25: /
A26: 24 | B26: 初中体育 | C26: 2024820706 | D26: 0 | E26: / | F26: / | G26: 缺考
A27: 25 | B27: 初中体育 | C27: 2024820708 | D27: 0 | E27: / | F27: / | G27: 缺考
A28: 26 | B28: 初中体育 | C28: 2024820711 | D28: 0 | E28: / | F28: / | G28: 缺考
A29: 27 | B29: 初中体育 | C29: 2024820712 | D29: 0 | E29: / | F29: / | G29: 缺考
A30: 28 | B30: 初中体育 | C30: 2024820715 | D30: 0 | E30: / | F30: / | G30: 缺考
A31: 29 | B31: 初中体育 | C31: 2024820718 | D31: 0 | E31: / | F31: / | G31: 缺考
A32: 30 | B32: 初中体育 | C32: 2024820720 | D32: 0 | E32: / | F32: / | G32: 缺考
A33: 31 | B33: 初中体育 | C33: 2024820722 | D33: 0 | E33: / | F33: / | G33: 缺考
A34: 32 | B34: 初中体育 | C34: 2024820723 | D34: 0 | E34: / | F34: / | G34: 缺考
A35: 33 | B35: 初中体育 | C35: 2024820725 | D35: 0 | E35: / | F35: / | G35: 缺考
A36: 34 | B36: 初中体育 | C36: 2024820726 | D36: 0 | E36: / | F36: / | G36: 缺考
A37: 35 | B37: 初中体育 | C37: 2024820802 | D37: 0 | E37: / | F37: / | G37: 缺考
